bitfinex-derivatives/quotes_BNBF0:USTF0_20250417
["timestamp","ask_amount","ask_price","bid_price","bid_amount"]
[1744915646479,0.2982441,593.45,592.56,3.737]
[1744915647885,0.33699534,593.48,592.56,3.737]
[1744915648086,0.29824934,593.44,592.56,3.737]
[1744915648285,0.29824934,593.47,592.56,3.737]
[1744915648487,0.33699534,593.48,592.56,3.737]
[1744915651087,0.871,593.47,592.56,3.737]
[1744915658697,0.29830384,593.46,592.56,3.737]
[1744915659597,0.33701238,593.45,592.56,3.737]
[1744915659794,0.29830384,593.44,592.56,3.737]
[1744915659995,0.33702374,593.43,592.56,3.737]
[1744915660191,0.29830384,593.42,592.56,3.737]
[1744915660390,0.3370351,593.41,592.56,3.737]
[1744915660596,0.29830384,593.4,592.56,3.737]
[1744915660791,0.33704646,593.39,592.56,3.737]
[1744915661096,0.29830384,593.38,592.56,3.737]
[1744915661994,0.33705782,593.37,592.56,3.737]
[1744915662197,0.29830384,593.36,592.56,3.737]
[1744915662398,0.33706918,593.35,592.56,3.737]
[1744915662798,0.29836292,593.34,592.56,3.737]
[1744915664501,0.63543778,593.34,592.56,3.737]
[1744915666501,0.998,593.33,592.56,3.737]
[1744915666902,0.29836292,593.32,592.56,3.737]
[1744915668103,0.998,593.33,592.56,3.737]
[1744915668304,0.29824189,593.32,592.56,3.737]
[1744915669401,0.3370919,593.31,592.56,3.737]
[1744915669601,0.29824189,593.3,592.56,3.737]
[1744915669798,0.33710327,593.29,592.56,3.737]
[1744915670001,0.29824189,593.28,592.56,3.737]
[1744915670301,0.33711463,593.27,592.56,3.737]
[1744915670501,0.29824189,593.26,592.56,3.737]
[1744915670706,0.337126,593.25,592.56,3.737]
[1744915670907,0.29824189,593.24,592.56,3.737]
[1744915671203,0.33713736,593.23,592.56,3.737]
[1744915671505,0.29824189,593.22,592.56,3.737]
[1744915674507,0.33713736,593.23,592.56,3.737]
[1744915674709,0.29818827,593.22,592.56,3.737]
[1744915679314,0.33713736,593.23,592.56,3.737]
[1744915679514,0.29813086,593.22,592.56,3.737]
[1744915680613,0.29813086,593.21,592.56,3.737]
[1744915680814,0.33713736,593.23,592.56,3.737]
[1744915681012,0.29812404,593.2,592.56,3.737]
[1744915681317,0.29812404,593.19,592.56,3.737]
[1744915681517,0.29812404,593.22,592.56,3.737]
[1744915681713,0.63526708,593.22,592.56,3.737]
[1744915682012,0.29812404,593.21,592.56,3.737]
[1744915683617,0.33714304,593.22,592.56,3.737]
[1744915683820,0.29811818,593.21,592.56,3.737]
[1744915685519,0.33715441,593.2,592.56,3.737]
[1744915685722,0.29811818,593.19,592.56,3.737]
[1744915686020,0.33716578,593.18,592.56,3.737]
[1744915686217,0.29811818,593.17,592.56,3.737]
[1744915687520,0.6308691,593.16,592.56,3.737]
[1744915687721,0.63530101,593.15,592.56,3.737]
[1744915687921,0.6353067,593.14,592.56,3.737]
[1744915688122,0.63531238,593.13,592.56,3.737]
[1744915688423,0.63531807,593.12,592.56,3.737]
[1744915688622,0.29811818,593.11,592.56,3.737]
[1744915688820,0.33721126,593.1,592.56,3.737]
[1744915689119,0.29811818,593.09,592.56,3.737]
[1744915689623,0.33722263,593.08,592.56,3.737]
[1744915689823,0.29811818,593.07,592.56,3.737]
[1744915690223,0.6353465,593.07,592.56,3.737]
[1744915690424,0.29811818,593.06,592.56,3.737]
[1744915693127,0.979,593.05,592.56,3.737]
[1744915693330,1.27701659,593.05,592.56,3.737]
[1744915693527,0.29801659,593.04,592.56,3.737]
[1744915694727,0.979,593.05,592.56,3.737]
[1744915694922,0.29803054,593.04,592.56,3.737]
[1744915697933,0.979,593.05,592.56,3.737]
[1744915698131,0.29802118,593.04,592.56,3.737]
[1744915699636,0.33725106,593.03,592.56,3.737]
[1744915699834,0.29802118,593.02,592.56,3.737]
[1744915700135,0.29802118,593.02,591.05,0.64388079]
[1744915700336,0.29802118,593.02,591.07,0.33836939]
[1744915700637,0.29802118,593.02,591.79,0.29372046]
[1744915700836,0.29802118,593.02,591.07,0.33836939]
[1744915701136,0.33725106,593.03,591.07,0.33836939]
[1744915701333,0.29805095,593.02,591.08,0.31026643]
[1744915701534,0.29805095,593.02,591.1,0.33835222]
[1744915701738,0.29805095,593.02,591.11,0.31026643]
[1744915702032,0.29805095,593.02,591.11,0.6041717]
[1744915702238,0.29393381,593.01,591.12,0.31026643]
[1744915702436,0.29805095,593.0,591.12,0.31026643]
[1744915702636,0.29805095,593.0,591.13,1.196]
[1744915702832,0.29805095,593.0,591.14,0.31026643]
[1744915703134,0.29805095,593.0,591.15,0.771]
[1744915703338,0.29805095,593.0,591.16,0.31026643]
[1744915703837,0.29805095,593.0,591.18,0.33830643]
[1744915704038,0.29805095,593.0,591.19,0.31026643]
[1744915704039,0.33727381,592.99,591.19,0.31026643]
[1744915704238,0.29805095,592.98,591.21,0.33828927]
[1744915704439,0.29801123,592.97,591.22,0.31030025]
[1744915704632,0.29801123,592.98,591.24,0.3382721]
[1744915704833,0.29801123,592.98,591.25,0.31030025]
[1744915705138,0.29801123,592.98,591.27,0.33825494]
[1744915705339,0.63529073,592.98,591.28,0.31030025]
[1744915705535,0.63529073,592.98,591.3,0.33823778]
[1744915705740,0.29801123,592.97,591.31,0.31030025]
[1744915705933,0.29801123,592.97,591.33,0.33822062]
[1744915706138,0.29801123,592.97,591.34,0.31030025]
[1744915707436,0.3372795,592.98,591.34,0.31030025]
[1744915707641,0.29795805,592.97,591.35,0.31029774]
[1744915707940,0.29795805,592.97,591.36,0.31029774]
[1744915708142,0.29795805,592.97,591.38,0.33819202]
[1744915708342,0.29795805,592.97,591.39,0.31029774]
[1744915708941,0.29795805,592.97,591.41,0.33817487]
[1744915709141,0.3372795,592.98,591.41,0.33817487]
[1744915709443,0.29795826,592.97,591.42,0.31030125]
[1744915710844,0.29795826,592.97,591.44,0.33815771]
[1744915711039,0.29795826,592.97,591.45,0.31030125]
[1744915711745,0.29795826,592.97,591.47,0.33814056]
[1744915711945,0.33729087,592.96,591.48,0.31030125]
[1744915712245,0.29795826,592.95,591.5,0.33812341]
[1744915712544,0.63524335,592.94,591.51,0.31032445]
[1744915712739,0.63524904,592.93,591.52,0.33811198]
[1744915712946,0.63525473,592.92,591.53,0.31032445]
[1744915713146,0.2979411,592.91,591.54,0.33810055]
[1744915713345,0.2979411,592.91,591.55,0.31032445]
[1744915713546,0.2979411,592.91,591.56,0.33808912]
[1744915713746,0.2979411,592.91,591.57,0.31032445]
[1744915713949,0.2979411,592.91,591.58,0.33807769]
[1744915714142,0.2979411,592.91,591.59,0.31032445]
[1744915714348,0.2979411,592.91,591.58,0.33807769]
[1744915714547,0.2979411,592.91,591.6,0.33806626]
[1744915715943,0.33731363,592.92,591.61,0.31037172]
[1744915715944,0.2979411,592.9,591.61,0.31037172]
[1744915716143,0.2979411,592.9,591.62,0.33805483]
[1744915716349,0.6352718,592.89,591.63,0.31037172]
[1744915716544,0.63527749,592.88,591.63,0.31037172]
[1744915716746,0.2979411,592.87,591.63,0.31037172]
[1744915716949,0.63528887,592.86,591.63,0.31037172]
[1744915717149,0.2979411,592.85,591.63,0.31037172]
[1744915717550,0.2979411,592.85,591.64,0.679]
[1744915719051,0.29789343,592.84,591.64,0.679]
[1744915719449,0.29789343,592.83,591.64,0.679]
[1744915719645,0.29789343,592.85,591.64,0.679]
[1744915721151,0.29789343,592.85,591.65,0.31029934]
[1744915722252,0.33734777,592.86,591.65,0.31029934]
[1744915722253,0.29797753,592.84,591.66,0.64832052]
[1744915722454,0.29797753,592.85,591.67,0.64831481]
[1744915722650,0.29797753,592.85,591.68,0.31028855]
[1744915723053,0.29797753,592.85,591.67,0.33802626]
[1744915723850,0.29797705,592.84,591.68,0.31029379]
[1744915724150,0.29797705,592.83,591.69,0.33801483]
[1744915724348,0.29797705,592.85,591.69,0.33801483]
[1744915724549,0.29797705,592.84,591.69,0.33801483]
[1744915724748,0.29797705,592.85,591.7,0.31028699]
[1744915724949,0.29797705,592.85,591.71,0.33800341]
[1744915725452,0.29797705,592.85,591.72,0.31028764]
[1744915725646,0.29797705,592.85,591.71,0.33800341]
[1744915726051,0.926,592.84,591.72,0.127]
[1744915726252,0.29797705,592.83,591.73,0.33799198]
[1744915727054,0.926,592.84,591.73,0.33799198]
[1744915727255,0.29796827,592.83,591.74,0.308]
[1744915727954,0.29796827,592.83,591.75,0.677]
[1744915728352,0.29796827,592.83,591.76,0.725]
[1744915730352,0.926,592.84,591.76,0.725]
[1744915730557,0.29797115,592.83,591.76,0.725]
[1744915732360,0.926,592.84,591.76,0.725]
[1744915732659,0.2979248,592.83,591.76,0.725]
[1744915735060,0.926,592.84,591.76,0.725]
[1744915735358,0.29788108,592.83,591.76,0.725]
[1744915736659,0.926,592.84,591.76,0.725]
[1744915736861,0.29788607,592.82,591.76,0.725]
[1744915737059,0.29788607,592.81,591.76,0.725]
[1744915737256,0.29788607,592.83,591.76,0.725]
[1744915737663,0.29788607,592.83,591.77,0.653]
[1744915739261,0.29788607,592.85,591.77,0.653]
[1744915739858,0.33734777,592.86,591.77,0.653]
[1744915740056,0.29787981,592.85,591.77,0.653]
[1744915741260,0.29788985,592.84,591.77,0.653]
[1744915741461,0.29788985,592.85,591.77,0.653]
[1744915741658,0.29788985,592.84,591.77,0.653]
[1744915741962,0.924,592.83,591.77,0.653]
[1744915742158,0.29788985,592.82,591.77,0.653]
[1744915742565,0.924,592.83,591.77,0.653]
[1744915742760,0.29788977,592.82,591.77,0.653]
[1744915744665,0.29788977,592.82,591.77,0.63779098]
[1744915745064,0.29788977,592.81,591.77,0.63779098]
[1744915745268,0.29788977,592.8,591.77,0.63779098]
[1744915745466,0.29788977,592.79,591.77,0.63779098]
[1744915745662,0.29788977,592.8,591.77,0.63779098]
[1744915745867,0.29702116,592.79,591.77,0.63779098]
[1744915746068,0.29702116,592.78,591.77,0.63779098]
[1744915746265,0.29702116,592.8,591.77,1.30879098]
[1744915747061,0.29702116,592.82,591.77,1.30879098]
[1744915747261,0.29702116,592.81,591.77,1.30879098]
[1744915747462,0.29702116,592.82,591.77,1.30879098]
[1744915747663,0.29702116,592.81,591.77,1.30879098]
[1744915747866,0.29702116,592.82,591.77,1.30879098]
[1744915748162,0.29702116,592.81,591.77,1.30879098]
[1744915748368,0.924,592.83,591.77,1.30879098]
[1744915748369,0.33738191,592.8,591.77,1.30879098]
[1744915748565,0.29702116,592.79,591.77,1.30879098]
[1744915749069,0.33739329,592.78,591.77,1.30879098]
[1744915749266,0.29702116,592.77,591.77,1.30879098]
[1744915749567,0.33740468,592.76,591.77,1.30879098]
[1744915749869,0.29702116,592.75,591.77,1.30879098]
[1744915750462,0.29702116,592.75,591.77,2.10379098]
[1744915750663,0.29699797,592.74,591.77,2.10379098]
[1744915750862,0.29699797,592.75,591.77,2.10379098]
[1744915751066,0.29699797,592.75,591.77,2.23079098]
[1744915751264,0.33741606,592.74,591.77,2.23079098]
[1744915751464,0.29699797,592.73,591.77,2.23079098]
[1744915752066,0.33742745,592.72,591.77,2.23079098]
[1744915752269,0.29701803,592.71,591.77,2.23079098]
[1744915753772,0.33742745,592.72,591.77,2.95579098]
[1744915753971,0.29702898,592.71,591.77,2.95579098]
[1744915755076,0.33743883,592.7,591.77,2.95579098]
[1744915755273,0.29702898,592.69,591.77,2.95579098]
[1744915755474,0.29700801,592.68,591.77,2.95579098]
[1744915755674,0.29700801,592.69,591.77,2.318]
[1744915755973,0.29700801,592.68,591.77,2.318]
[1744915756174,0.29700801,592.69,591.77,2.318]
[1744915758880,0.29700801,592.69,591.77,2.625]
[1744915760180,0.33743883,592.7,591.77,2.625]
[1744915760377,0.29705157,592.69,591.77,2.625]
[1744915763386,0.33743883,592.7,591.77,2.625]
[1744915763587,0.29710392,592.69,591.77,2.625]
[1744915763988,0.29710392,592.69,591.77,3.354]
[1744915764987,0.33743883,592.7,591.77,3.354]
[1744915765189,0.29708407,592.69,591.77,3.354]
[1744915766592,0.29709337,592.68,591.77,3.354]
[1744915766791,0.29709337,592.69,591.77,3.354]
[1744915766991,0.29709337,592.68,591.77,3.354]
[1744915767190,0.29709337,592.69,591.77,3.354]
[1744915768095,0.33743883,592.7,591.77,3.354]
[1744915768296,0.29713308,592.69,591.77,3.354]
[1744915769695,0.33743883,592.7,591.77,3.354]
[1744915769894,0.29711899,592.68,591.77,3.354]
[1744915770092,0.29711899,592.67,591.77,3.354]
[1744915770291,0.29711899,592.69,591.77,3.354]
[1744915770494,0.29711899,592.68,591.77,3.354]
[1744915770692,0.29711899,592.69,591.77,3.354]
[1744915771295,0.33743883,592.7,591.77,3.354]
[1744915771489,0.29714202,592.69,591.77,3.354]
[1744915773897,1.01814202,592.69,591.77,3.354]
[1744915774098,0.29714202,592.68,591.77,3.354]
[1744915774398,0.721,592.69,591.77,3.354]
[1744915774596,0.29718365,592.68,591.77,3.354]
[1744915775999,0.721,592.69,591.77,3.354]
[1744915776199,0.29717454,592.68,591.77,3.354]
[1744915780703,0.721,592.69,591.78,0.33796343]
[1744915783603,0.721,592.69,591.78,0.92496343]
[1744915784101,0.721,592.69,591.78,1.35896343]
[1744915784505,0.721,592.69,591.78,2.14296343]
[1744915784701,0.721,592.69,591.78,2.86796343]
[1744915788410,0.721,592.69,591.78,3.51896343]
[1744915790608,0.2971977,592.68,591.78,3.51896343]
[1744915793805,0.2971977,592.68,591.79,0.31028795]
[1744915794105,0.2971977,592.68,591.79,0.64824567]
[1744915794310,0.2971977,592.68,591.79,0.33795772]
[1744915797509,0.721,592.69,591.79,0.33795772]
[1744915798916,0.721,592.69,591.79,0.64495772]
[1744915803521,0.721,592.69,591.79,1.29995772]
[1744915806523,0.29710031,592.68,591.79,1.29995772]
[1744915807122,0.29710031,592.98,591.79,1.29995772]
[1744915807422,1.28964742,593.48,591.79,1.42695772]
[1744915807616,0.3372795,592.98,591.79,1.42695772]
[1744915807820,0.29706906,592.97,591.79,1.42695772]
[1744915808723,0.33729087,592.96,591.79,1.42695772]
[1744915809021,0.29699707,592.95,591.79,1.42695772]
[1744915809218,0.29699707,592.94,591.79,1.42695772]
[1744915809420,0.29699707,592.93,591.79,1.42695772]
[1744915809723,0.29699707,592.92,591.79,1.42695772]
[1744915809923,0.63431639,592.91,591.79,1.42695772]
[1744915810124,0.63432208,592.9,591.79,2.08995772]
[1744915810317,0.63432777,592.89,591.79,2.08995772]
[1744915810521,0.33733639,592.88,591.79,2.08995772]
[1744915810721,0.29699458,592.87,591.79,2.08995772]
[1744915810924,0.63433666,592.87,591.79,2.08995772]
[1744915811123,0.29699458,592.86,591.79,2.08995772]
[1744915812128,0.33734208,592.87,591.79,2.08995772]
[1744915812428,0.29699055,592.86,591.79,2.94895772]
[1744915815227,0.33734208,592.87,591.79,2.94895772]
[1744915815423,0.29703349,592.86,591.79,2.94895772]
[1744915818432,0.33734208,592.87,591.79,2.94895772]
[1744915818632,0.29703679,592.86,591.79,2.94895772]
[1744915819834,0.33735346,592.85,591.79,2.94895772]
[1744915820029,0.29703679,592.84,591.79,2.94895772]
[1744915820329,0.33736484,592.83,591.79,2.94895772]
[1744915820533,0.29703679,592.82,591.79,2.94895772]
[1744915820733,0.63440732,592.82,591.79,2.94895772]
[1744915820929,0.29702171,592.81,591.79,2.94895772]
[1744915821633,0.33737053,592.82,591.79,2.94895772]
[1744915821834,0.29701971,592.81,591.79,2.94895772]
[1744915828039,0.33737053,592.82,591.79,2.94895772]
[1744915828237,0.29698207,592.81,591.79,2.94895772]
[1744915830441,0.29698207,592.8,591.79,2.94895772]
[1744915830641,0.29698207,592.79,591.79,2.94895772]
[1744915830838,0.33737053,592.82,591.79,2.94895772]
[1744915830839,0.29698207,592.81,591.79,2.94895772]
[1744915831039,0.29698207,592.8,591.79,2.94895772]
[1744915831340,0.29698338,592.79,591.79,2.94895772]
[1744915831640,0.29698338,592.78,591.79,2.94895772]
[1744915831843,0.33737053,592.82,591.79,2.94895772]
[1744915831844,0.29698338,592.81,591.79,2.94895772]
[1744915832036,0.29698338,592.8,591.79,2.94895772]
[1744915832236,0.29698338,592.81,591.79,2.94895772]
[1744915832441,0.29698338,592.8,591.79,2.94895772]
[1744915832638,0.3373876,592.79,591.79,2.94895772]
[1744915833043,0.29697765,592.78,591.79,2.94895772]
[1744915833745,0.33739899,592.77,591.79,2.94895772]
[1744915833938,0.29697765,592.76,591.79,2.611]
[1744915834338,0.33741037,592.75,591.79,2.611]
[1744915834537,0.29697765,592.74,591.79,2.611]
[1744915834740,0.33742176,592.73,591.79,2.611]
[1744915835038,0.29697765,592.72,591.79,2.611]
[1744915835242,0.33743314,592.71,591.79,2.611]
[1744915835539,0.29697765,592.7,591.79,2.611]
[1744915835743,0.63441648,592.7,591.79,2.611]
[1744915835943,0.29697765,592.69,591.79,2.611]
[1744915837645,0.33743883,592.7,591.79,2.611]
[1744915837847,0.296953,592.69,591.79,2.611]
[1744915841147,0.296953,592.68,591.79,2.611]
[1744915841352,0.29388293,592.77,591.79,2.611]
[1744915841553,0.296953,592.76,591.79,2.611]
[1744915842552,0.29388293,592.77,591.79,2.611]
[1744915842749,0.29695552,592.76,591.79,2.611]
[1744915843351,0.29695552,593.12,591.79,2.611]
[1744915843549,0.29695552,593.11,591.79,2.611]
[1744915843848,0.29695552,593.1,591.79,2.611]
[1744915844052,0.29695552,593.09,591.79,2.611]
[1744915844353,0.29695552,593.08,591.79,2.611]
[1744915844555,0.29695552,593.07,591.79,2.611]
[1744915844750,0.29695552,593.06,591.79,2.611]
[1744915844956,0.29695552,593.05,591.79,2.611]
[1744915845149,1.28964742,592.95,591.79,2.611]
[1744915845350,0.29695552,592.94,591.79,2.611]
[1744915845550,0.29695552,592.93,591.79,2.611]
[1744915845753,0.29695552,592.92,591.79,2.611]
[1744915845950,0.29695552,592.91,591.79,2.611]
[1744915846255,0.29695552,592.9,591.79,2.611]
[1744915846453,0.29390527,592.9,591.79,2.611]
[1744915846654,0.29695552,592.89,591.79,2.611]
[1744915847459,0.29390527,592.9,591.79,2.611]
[1744915847754,0.29694452,592.89,591.79,2.611]
[1744915847953,1.28964742,592.86,591.79,2.611]
[1744915848154,0.29694452,592.85,591.79,2.611]
[1744915850457,0.29391644,592.84,591.79,2.611]
[1744915850658,0.29694452,592.83,591.79,2.611]
[1744915850859,0.29694797,592.82,591.79,2.611]
[1744915851154,0.29694797,592.81,591.79,2.611]
[1744915851359,0.29694797,592.83,591.79,2.611]
[1744915851554,0.29694797,592.82,591.79,2.611]
[1744915851756,0.29694797,592.83,591.79,2.611]
[1744915852055,0.29694797,592.82,591.79,3.455]
[1744915852261,0.29694797,592.83,591.79,4.157]
[1744915852559,0.29694797,592.82,591.79,4.157]
[1744915852760,0.29694797,593.06,591.79,4.157]
[1744915852960,0.29694797,593.05,591.79,4.157]
[1744915853161,0.29694797,593.04,591.79,4.157]
[1744915853457,0.29694797,593.03,591.79,4.157]
[1744915853660,0.29694797,593.02,591.79,4.157]
[1744915853860,0.29387548,593.04,591.79,4.157]
[1744915853861,0.29694797,593.01,591.79,4.157]
[1744915854058,0.29694797,593.0,591.79,4.157]
[1744915854255,0.29694797,592.99,591.79,4.157]
[1744915854554,0.29694797,592.98,591.79,4.157]
[1744915854756,0.29694797,592.97,591.79,4.157]
[1744915854960,0.29694797,592.96,591.79,4.157]
[1744915855262,0.29694797,592.95,591.79,4.157]
[1744915855455,0.29694797,592.94,591.79,4.157]
[1744915855655,0.29694797,592.93,591.79,4.157]
[1744915855859,0.29694797,592.95,591.79,4.157]
[1744915856159,0.29694797,592.94,591.79,4.157]
[1744915856363,0.29694797,592.93,591.79,4.157]
[1744915856556,0.29387921,592.96,591.79,4.157]
[1744915856557,0.29694797,592.92,591.79,4.157]
[1744915856761,0.29694797,592.91,591.79,4.157]
[1744915856959,0.29694797,592.9,591.79,4.157]
[1744915857163,0.29694797,592.89,591.79,4.157]
[1744915857357,0.29387921,592.96,591.79,4.157]
[1744915857562,0.29693479,592.95,591.79,4.157]
[1744915857762,0.29693479,592.94,591.79,4.157]
[1744915857962,0.29693479,592.93,591.79,4.157]
[1744915858168,0.29693479,592.92,591.79,4.157]
[1744915858364,0.29693479,592.91,591.79,4.157]
[1744915858562,1.28964742,592.85,591.79,4.157]
[1744915858858,0.29693479,592.84,591.79,4.157]
[1744915859064,0.29693479,592.83,591.79,4.157]
[1744915859363,0.29693479,592.82,591.79,4.157]
[1744915859664,0.29693479,592.81,591.79,4.157]
[1744915859861,0.29693479,592.8,591.79,4.157]
[1744915860059,0.29693479,592.79,591.79,4.157]
[1744915860364,0.29693479,592.78,591.79,4.157]
[1744915860567,1.58658221,592.77,591.79,4.157]
[1744915860766,0.29693479,592.76,591.79,4.157]
[1744915860967,0.29693479,592.75,591.79,4.157]
[1744915861165,0.29693479,592.74,591.79,4.157]
[1744915861365,0.29693479,592.73,591.79,4.157]
[1744915861566,0.29693479,592.76,591.79,4.157]
[1744915862766,1.58658221,592.76,591.79,4.157]
[1744915862966,0.29693479,592.75,591.79,4.157]
[1744915864667,0.715,592.74,591.79,4.157]
[1744915864868,0.29693479,592.73,591.79,4.157]
[1744915866469,0.715,592.74,591.79,4.157]
[1744915866670,0.29694013,592.73,591.79,4.157]
[1744915867570,0.29692219,592.72,591.79,4.157]
[1744915867768,0.29692219,592.73,591.79,4.157]
[1744915868065,0.29692219,592.72,591.79,4.157]
[1744915868265,0.715,592.74,591.79,4.157]
[1744915869271,0.29690805,592.73,591.79,4.157]
[1744915870965,0.715,592.74,591.79,4.157]
[1744915871170,0.29689975,592.73,591.79,4.157]
[1744915871373,0.59084598,592.73,591.79,4.157]
[1744915871571,0.29689975,592.72,591.79,4.157]
[1744915873074,0.715,592.74,591.79,4.157]
[1744915873274,0.63431739,592.73,591.79,4.157]
[1744915873573,0.29394747,592.71,591.79,4.157]
[1744915873875,0.29689563,592.7,591.79,4.157]
[1744915874277,0.33744453,592.69,591.79,4.157]
[1744915874578,0.29689563,592.68,591.79,4.157]
[1744915875180,0.33745591,592.67,591.79,4.157]
[1744915875379,0.29689563,592.66,591.79,4.157]
[1744915875679,0.3374673,592.65,591.79,4.157]
[1744915875878,0.29689563,592.64,591.79,4.157]
[1744915876079,0.33747869,592.63,591.79,4.157]
[1744915876274,0.29689563,592.62,591.79,4.157]
[1744915877075,0.33749008,592.61,591.79,4.157]
[1744915877280,0.29689563,592.6,591.79,4.157]
[1744915878483,0.33750147,592.59,591.79,4.157]
[1744915878675,0.29689563,592.58,591.79,4.157]
[1744915878880,0.33751286,592.57,591.79,4.157]
[1744915879181,0.29689563,592.56,591.79,4.157]
[1744915879374,0.33752425,592.55,591.79,4.157]
[1744915879582,0.29688834,592.54,591.79,4.157]
[1744915879881,0.33753565,592.53,591.79,4.157]
[1744915880084,0.29688834,592.52,591.79,4.157]
[1744915880385,0.63442968,592.52,591.79,4.157]
[1744915880585,0.29688834,592.51,591.79,4.157]
[1744915881083,0.33754134,592.52,591.79,4.157]
[1744915881381,0.29688745,592.51,591.79,4.157]
[1744915882682,0.33754134,592.52,591.79,4.157]
[1744915882883,0.29689004,592.51,591.79,4.157]
[1744915884286,0.33754134,592.52,591.79,4.157]
[1744915884487,0.29689325,592.51,591.79,4.157]
[1744915885784,0.33754134,592.52,591.79,4.157]
[1744915886088,0.29689187,592.51,591.79,4.157]
[1744915889089,0.33754134,592.52,591.79,4.157]
[1744915889289,0.29689223,592.51,591.79,4.157]
[1744915889986,0.33755274,592.5,591.79,4.157]
[1744915890187,0.29689223,592.49,591.79,4.157]
[1744915890789,0.29687223,592.48,591.79,4.157]
[1744915890990,0.29687223,592.49,591.79,4.157]
[1744915891189,0.29687223,592.48,591.79,4.157]
[1744915891484,0.29687223,592.47,591.79,4.157]
[1744915891689,0.29687223,592.49,591.79,4.157]
[1744915891890,0.616,592.46,591.79,4.157]
[1744915892188,0.29687223,592.45,591.79,4.157]
[1744915892490,0.2968672,592.44,591.79,4.157]
[1744915892690,0.2968672,592.45,591.79,4.157]
[1744915892891,0.2968672,592.44,591.79,4.157]
[1744915893087,0.2968672,592.45,591.79,4.157]
[1744915893287,0.2968672,592.44,591.79,4.157]
[1744915893488,0.2968672,592.45,591.79,4.157]
[1744915893688,0.2968672,592.44,591.79,4.157]
[1744915893890,0.616,592.46,591.79,4.157]
[1744915894090,0.29685716,592.45,591.79,4.157]
[1744915894293,0.33758692,592.44,591.79,4.157]
[1744915894485,0.29685716,592.43,591.79,4.157]
[1744915894689,0.33759832,592.42,591.79,4.157]
[1744915894991,0.29685716,592.41,591.79,4.157]
[1744915895491,0.33759832,592.42,591.79,4.157]
[1744915895693,0.29686059,592.41,591.79,4.157]
[1744915897391,0.33759832,592.42,591.79,4.157]
[1744915897592,0.29686909,592.4,591.79,4.157]
[1744915897793,0.29686909,592.41,591.79,4.157]
[1744915897994,0.29686909,592.39,591.79,4.157]
[1744915898194,0.29686909,592.38,591.79,4.157]
[1744915898494,0.29686909,592.41,591.79,4.157]
[1744915898995,0.33759832,592.42,591.79,4.157]
[1744915899194,0.29686605,592.41,591.79,4.157]
[1744915900596,0.33759832,592.42,591.79,4.157]
[1744915900797,0.29684994,592.41,591.79,4.157]
[1744915903898,0.2968496,592.4,591.79,4.157]
[1744915904098,0.2968496,592.39,591.79,4.157]
[1744915904301,0.2968496,592.41,591.79,4.157]
[1744915904494,0.2968496,592.4,591.79,4.157]
[1744915904700,0.2968496,592.39,591.79,4.157]
[1744915904899,0.2968496,592.38,591.79,4.157]
[1744915905095,0.2968496,592.41,591.79,4.157]
[1744915905300,0.2968496,592.4,591.79,4.157]
[1744915905501,0.2968496,592.41,591.79,4.157]
[1744915905696,0.2968496,592.4,591.79,4.157]
[1744915905897,0.2968496,592.41,591.79,4.157]
[1744915906097,0.2968496,592.39,591.79,4.157]
[1744915906399,0.2968496,592.38,591.79,4.157]
[1744915906603,0.2968496,592.41,591.79,4.157]
[1744915906803,0.2968496,592.4,591.79,4.157]
[1744915907003,0.2968496,592.41,591.79,4.157]
[1744915907196,0.2968496,592.4,591.79,4.157]
[1744915907400,0.29684573,592.39,591.79,4.157]
[1744915907602,0.29684573,592.41,591.79,4.157]
[1744915907798,0.63444975,592.41,591.79,4.157]
[1744915907998,0.29684573,592.4,591.79,4.157]
[1744915909506,0.725,592.39,591.79,4.157]
[1744915909701,0.29684573,592.38,591.79,4.157]
[1744915910106,0.725,592.39,591.79,4.157]
[1744915910307,0.29682872,592.38,591.79,4.157]